bitfinex-derivatives/quotes_SOLF0:USTF0_20251224
["timestamp","ask_amount","ask_price","bid_price","bid_amount"]
[1766577347772,3.29292241,122.09,122.05,3.55]
[1766577348068,3.29292241,122.09,122.01,3.55]
[1766577348272,3.29,122.09,122.01,3.55]
[1766577348967,0.05577153,122.06,122.04,0.06065613]
[1766577349167,0.0614442,122.06,122.04,0.06065613]
[1766577350278,1.6414442,122.06,122.0,100.19]
[1766577350579,1.6414442,122.06,122.01,3.55]
[1766577351367,1.6414442,122.06,122.02,0.06165291]
[1766577361186,1.6414442,122.06,122.02,3.61165291]
[1766577361479,1.6414442,122.06,122.02,0.06165291]
[1766577362683,1.6414442,122.06,122.02,7.44175291]
[1766577365285,1.6414442,122.06,122.02,0.06165291]
[1766577377386,1.6414442,122.06,122.02,0.00165291]
[1766577385300,1.51,122.05,121.98,3.42]
[1766577386300,0.05455142,122.03,122.0,0.05456516]
[1766577391103,1.21455142,122.03,122.0,0.05456516]
[1766577408711,1.21455142,122.03,122.0,0.00456516]
[1766577413617,0.05455142,122.03,122.0,3.56456516]
[1766577413920,15.04189221,122.08,122.0,3.56456516]
[1766577413921,1.46,122.07,122.0,3.56456516]
[1766577414217,1.46,122.07,122.0,3.56]
[1766577414619,1.46,122.07,122.01,10.9408]
[1766577414812,0.05205268,122.05,122.03,0.05700621]
[1766577438235,0.05205268,122.05,122.03,3.38700621]
[1766577438433,1.46,122.07,122.03,3.38700621]
[1766577439533,0.05797039,122.06,122.03,3.38700621]
[1766577444736,1.51797039,122.06,122.03,0.05700621]
[1766577454349,1.51797039,122.06,122.01,3.33]
[1766577455450,1.51797039,122.06,122.02,0.05449232]
[1766577482173,1.51797039,122.06,122.02,10.88459232]
[1766577482375,0.05797039,122.06,122.02,10.88459232]
[1766577489975,0.05797039,122.06,121.98,114.8387]
[1766577489976,1.36,122.04,121.98,3.45]
[1766577490982,0.0598829,122.02,122.0,0.05645809]
[1766577527307,1.36,122.05,122.0,0.05645809]
[1766577528404,1.41959916,122.04,122.0,0.05645809]
[1766577561844,1.41959916,122.04,122.0,7.43775809]
[1766577570149,1.3,122.02,121.96,3.45]
[1766577571150,0.06024784,122.0,121.98,0.05421836]
[1766577578963,0.00024784,122.0,121.98,10.80681836]
[1766577595276,0.00024784,122.0,121.98,3.42421836]
[1766577606573,0.00024784,122.0,121.98,0.05421836]
[1766577607378,0.00024784,122.0,121.98,3.43421836]
[1766577614491,0.00024784,122.0,121.98,0.05421836]
[1766577614686,0.00024784,122.0,121.96,3.38]
[1766577615081,7.3828,121.98,121.94,1.94480366]
[1766577615280,10.6728,121.98,121.94,3.66e-06]
[1766577615482,3.29,121.98,121.94,3.66e-06]
[1766577615784,0.05232641,121.97,121.95,0.05818686]
[1766577624893,0.05232641,121.97,121.92,3.38]
[1766577625495,0.05232641,121.97,121.94,3.38]
[1766577625689,1.77379573,121.99,121.94,3.38]
[1766577626589,0.06293269,121.98,121.95,0.06122376]
[1766577635593,0.06293269,121.98,121.95,3.34122376]
[1766577637597,0.00293269,121.98,121.95,10.72562376]
[1766577637798,0.00293269,121.98,121.96,3.44]
[1766577647717,0.00293269,121.98,121.95,0.06122376]
[1766577648014,0.00293269,121.98,121.95,3.50122376]
[1766577660620,0.00293269,121.98,121.97,3.44]
[1766577665728,0.00293269,121.98,121.96,96.76]
[1766577665924,0.00293269,121.98,121.96,100.29]
[1766577666128,0.00293269,121.98,121.96,3.53]
[1766577667628,0.00293269,121.98,121.95,7.44562376]
[1766577667827,0.00293269,121.98,121.95,0.06122376]
[1766577668330,0.00293269,121.98,121.95,3.59122376]
[1766577672129,10.60563269,121.98,121.93,3.53]
[1766577672434,3.22293269,121.98,121.93,3.53]
[1766577673132,3.22293269,121.98,121.94,0.06039579]
[1766577673329,1.26519768,121.95,121.9,96.76]
[1766577673530,4.62519768,121.95,121.9,96.76]
[1766577673731,4.62519768,121.95,121.87,96.76]
[1766577674425,0.05469276,121.92,121.9,0.05921572]
[1766577675427,0.00469276,121.92,121.9,3.58921572]
[1766577687151,0.00469276,121.92,121.9,0.05921572]
[1766577687744,0.00469276,121.92,121.9,3.58921572]
[1766577689150,0.00469276,121.92,121.91,3.53]
[1766577693753,0.00469276,121.92,121.89,3.12]
[1766577694851,0.00469276,121.92,121.89,3.18184085]
[1766577697361,3.41469276,121.92,121.89,0.06184085]
[1766577697554,3.41469276,121.92,121.86,10.9196]
[1766577698255,3.41469276,121.92,121.83,96.8]
[1766577698256,3.41469276,121.92,121.87,10.9193]
[1766577698565,0.05763631,121.91,121.88,3.5847565]
[1766577698855,0.05285224,121.91,121.88,3.58267372]
[1766577699650,0.05285224,121.91,121.88,10.97127372]
[1766577700566,0.05285224,121.91,121.89,7.3881]
[1766577700762,3.41,121.94,121.89,10.9181]
[1766577701662,0.06088382,121.93,121.89,10.9181]
[1766577706269,0.06088382,121.93,121.89,3.53]
[1766577710480,10.85668382,121.93,121.88,3.58267372]
[1766577710779,0.06088382,121.93,121.88,3.58267372]
[1766577715384,3.47088382,121.93,121.88,3.58267372]
[1766577727790,0.06088382,121.93,121.88,3.58267372]
[1766577735198,0.06088382,121.93,121.88,10.97137372]
[1766577735400,0.06088382,121.93,121.89,3.56]
[1766577735999,0.06088382,121.93,121.89,10.9481]
[1766577736199,0.06088382,121.93,121.88,3.61267372]
[1766577736200,3.31088382,121.93,121.88,3.61267372]
[1766577737587,3.31088382,121.93,121.89,3.56]
[1766577741802,0.06088382,121.93,121.89,3.56]
[1766577742997,3.25,121.97,121.9,3.56]
[1766577743698,4.51637509,122.0,121.9,3.56]
[1766577743904,3.25,121.98,121.9,3.56]
[1766577744100,0.0566119,121.95,121.93,0.05690668]
[1766577747103,0.0566119,121.95,121.93,3.61690668]
[1766577747298,10.6332,121.98,121.93,3.61690668]
[1766577747504,3.25,121.98,121.93,3.61690668]
[1766577747898,1.26637509,122.0,121.94,3.56]
[1766577747899,3.25,122.0,121.94,3.56]
[1766577748299,0.06284982,121.98,121.96,0.05874402]
[1766577748807,0.00284982,121.98,121.96,3.61874402]
[1766577750609,0.00284982,121.98,121.96,11.00244402]
[1766577751806,3.25,122.02,121.96,11.00244402]
[1766577752906,0.05175972,122.0,121.97,3.31]
[1766577754212,0.00175972,122.0,121.97,10.6932]
[1766577754510,0.00175972,122.0,121.98,3.31]
[1766577763713,0.00175972,122.0,121.96,3.53874402]
[1766577764502,3.22175972,122.0,121.96,3.53874402]
[1766577764708,3.22,121.98,121.92,3.48]
[1766577765610,0.05961852,121.96,121.94,0.0630202]
[1766577766715,0.05961852,121.96,121.92,3.48]
[1766577767711,0.05961852,121.96,121.93,0.05921611]
[1766577771320,3.27961852,121.96,121.93,0.05921611]
[1766577772216,3.27961852,121.96,121.9,7.3874]
[1766577772418,3.27961852,121.96,121.88,96.78]
[1766577772620,3.22,121.95,121.88,96.78]
[1766577773117,0.05460715,121.93,121.9,0.05484041]
[1766577778225,3.27460715,121.93,121.9,0.05484041]
[1766577789031,3.27460715,121.93,121.86,3.25]
[1766577789231,3.22,121.93,121.86,3.25]
[1766577789435,3.23,121.92,121.86,3.25]
[1766577790026,0.05335398,121.9,121.88,0.06292787]
[1766577791236,3.23,121.94,121.88,10.70152787]
[1766577792341,0.05215855,121.92,121.88,10.70152787]
[1766577793947,0.00215855,121.92,121.89,10.6381]
[1766577795249,0.00215855,121.92,121.9,3.25]
[1766577796447,3.23,121.98,121.91,3.25]
[1766577796645,3.23,121.97,121.91,3.25]
[1766577797449,0.06203038,121.95,121.93,0.05566019]
[1766577808560,0.00203038,121.95,121.93,3.30566019]
[1766577808762,3.23,121.98,121.93,3.30566019]
[1766577809157,3.23,122.0,121.94,10.635]
[1766577809350,104.2406,122.02,121.95,3.25]
[1766577809351,100.09,122.02,121.95,3.25]
[1766577809751,3.23,122.02,121.97,10.69157093]
[1766577810361,3.23,122.04,121.98,3.25]
[1766577810757,3.23,122.04,121.98,10.6325]
[1766577810953,0.05293599,122.02,122.0,0.05366267]
[1766577813867,3.39,122.06,122.0,3.31366267]
[1766577815060,0.05712795,122.04,122.0,3.31366267]
[1766577827480,3.14712795,122.04,122.0,0.05366267]
[1766577827979,0.05712795,122.04,122.0,3.36366267]
[1766577830980,0.05712795,122.04,122.01,3.31]
[1766577834983,0.05712795,122.04,122.0,7.43506267]
[1766577835986,0.05712795,122.04,122.0,10.74506267]
[1766577839883,0.05712795,122.04,122.01,3.31]
[1766577843186,0.05712795,122.04,122.01,10.6907]
[1766577850698,0.05712795,122.04,122.02,3.32]
[1766577853401,10.7168,122.08,122.02,3.32]
[1766577853999,3.34,122.07,122.02,3.32]
[1766577854196,0.05485932,122.06,122.03,0.06238136]
[1766577856002,0.05485932,122.06,122.03,3.38238136]
[1766577867525,10.716,122.09,122.03,3.38238136]
[1766577867726,10.716,122.09,122.03,3.32]
[1766577868521,0.05637242,122.07,122.05,0.05812306]
[1766577875926,3.36637242,122.07,122.02,3.35]
[1766577876933,3.36637242,122.07,122.03,0.05443825]
[1766577879037,3.36637242,122.07,122.03,3.58443825]
[1766577882039,0.05637242,122.07,122.03,3.58443825]
[1766577883039,4.81359763,122.04,121.97,3.53]
[1766577884138,0.05919104,122.02,121.99,0.06097911]
[1766577884337,0.05919104,122.02,121.99,3.59097911]
[1766577884641,6.32945889,122.06,121.99,3.59097911]
[1766577884642,1.26359763,122.05,122.0,3.53]
[1766577885432,0.05387096,122.04,122.01,3.58861591]
[1766577886040,3.55,122.08,122.01,3.58861591]
[1766577886234,3.55,122.08,122.01,3.53]
[1766577887032,0.05383043,122.06,122.03,3.5864625]
[1766577888843,4.81359763,122.1,122.04,3.53]
[1766577889839,0.05746566,122.08,122.06,0.05400481]
[1766577899242,3.55,122.07,122.02,3.53]
[1766577899443,4.81359763,122.06,122.0,3.53]
[1766577899846,4.81359763,122.06,122.01,7.3807]
[1766577900153,4.81359763,122.06,122.01,10.9107]
[1766577900353,0.05674497,122.05,122.02,0.05317904]
[1766577901044,3.60674497,122.05,122.02,0.05317904]
[1766577901255,1.26359763,122.04,121.99,10.9115]
[1766577901444,4.49359763,122.04,121.99,10.9115]
[1766577902154,4.49359763,122.04,122.0,0.05711561]
[1766577906941,4.49359763,122.04,122.0,3.46711561]
[1766577906942,3.23,122.04,122.0,3.46711561]
[1766577907146,0.05674497,122.05,122.0,3.46711561]
[1766577907655,0.05674497,122.05,122.01,3.41]
[1766577924454,0.05674497,122.05,122.01,10.7907]
[1766577924659,0.05674497,122.05,122.02,3.41]
[1766577930660,3.23,122.03,121.91,114.9018]
[1766577930862,3.23,122.01,121.92,3.41]
[1766577931061,3.23,121.99,121.92,3.41]
[1766577931565,3.46,121.97,121.92,3.41]
[1766577931866,3.51564784,121.97,121.94,0.0595558]
[1766577936263,3.51564784,121.97,121.94,0.0028787]
[1766577938882,3.51564784,121.97,121.9,100.21]
[1766577939182,3.51564784,121.97,121.91,3.47]
[1766577939976,3.51564784,121.97,121.93,0.06263808]
[1766577940379,0.05564784,121.97,121.93,3.53263808]
[1766577945085,3.46564784,121.97,121.93,0.06263808]
[1766577950583,0.05564784,121.97,121.93,3.53263808]
[1766577951092,3.41,121.99,121.94,3.47]
[1766577952096,0.05598446,121.98,121.94,3.47]
[1766577952687,3.41,122.01,121.94,3.47]
[1766577953587,3.41,122.01,121.96,3.47]
[1766577953788,0.06137287,122.0,121.97,0.05394425]
[1766577955896,0.00137287,122.0,121.97,3.52394425]
[1766577961906,0.00137287,122.0,121.97,0.05394425]
[1766577976010,3.39137287,122.0,121.97,0.00394425]
[1766577976211,3.39137287,122.0,121.94,3.41]
[1766577977212,3.39137287,122.0,121.96,0.05559827]
[1766577986737,10.77297287,122.0,121.96,0.05559827]
[1766577997333,3.51,121.99,121.96,0.05559827]
[1766577998334,10.8922,121.99,121.96,0.05559827]
[1766578009147,3.51,121.99,121.96,0.05559827]
[1766578021456,1.26635166,122.0,121.96,0.05559827]
[1766578021655,6.34349383,121.99,121.96,0.05559827]
[1766578021855,4.56635166,122.0,121.96,0.05559827]
[1766578022057,9.64347531,121.99,121.96,0.05559827]
[1766578022357,3.3,121.99,121.96,0.05559827]
[1766578027063,0.00137287,122.0,121.96,3.42559827]
[1766578027557,3.30137287,122.0,121.96,3.42559827]
[1766578027763,3.30137287,122.0,121.96,0.05559827]
[1766578031663,0.00137287,122.0,121.96,10.80929827]
[1766578031965,0.00137287,122.0,121.96,3.42559827]
[1766578032465,0.00137287,122.0,121.97,7.3832]
[1766578033064,0.00137287,122.0,121.98,7.3825]
[1766578033261,96.84,122.04,121.98,10.7525]
[1766578033465,100.14,122.04,121.98,3.37]
[1766578034260,0.05886793,122.02,122.0,0.05802418]
[1766578036061,3.3,122.04,122.0,0.05802418]
[1766578036960,0.0530754,122.03,122.0,0.05802418]
[1766578059687,3.6130754,122.03,122.0,0.05802418]
[1766578090206,3.43,122.05,122.0,0.05802418]
[1766578091211,3.48744345,122.04,122.0,0.05802418]
[1766578091605,3.48744345,122.04,122.0,7.43942418]
[1766578093218,3.48744345,122.04,121.97,118.2175]
[1766578094319,3.48744345,122.04,121.99,0.05697827]
[1766578094614,3.48744345,122.04,122.0,7.3814]
[1766578096219,3.48744345,122.04,121.99,0.05697827]
[1766578097619,3.43,122.03,121.99,0.05697827]
[1766578107722,0.05744345,122.04,121.99,3.42697827]
[1766578108727,0.05744345,122.04,122.01,7.3808]
[1766578109830,3.48744345,122.04,121.99,0.05697827]
[1766578110126,4.69433991,122.03,121.99,0.05697827]
[1766578110327,3.43,122.02,121.96,3.37]
[1766578111316,0.05728004,122.0,121.98,0.06061251]
[1766578113230,3.36728004,122.0,121.98,0.06061251]
[1766578123035,3.36728004,122.0,121.98,0.00061251]
[1766578140355,3.36728004,122.0,121.95,96.74]
[1766578140741,3.36728004,122.0,121.93,3.39]
[1766578140938,3.47,121.99,121.93,7.3852]
[1766578141351,0.05878459,121.97,121.95,0.05793419]
[1766578152363,3.28,122.0,121.95,10.93233419]
[1766578153365,0.0572147,121.99,121.95,10.93233419]
[1766578154359,7.3795,122.04,121.95,3.54793419]
[1766578154575,6.33995047,122.03,121.95,3.49]
[1766578154858,8.64383991,122.04,121.95,3.49]
[1766578155063,6.34035793,122.03,121.95,3.49]
[1766578155268,8.64383991,122.04,121.95,3.49]
[1766578155464,0.05241073,122.01,121.98,0.05387334]
[1766578156664,0.05241073,122.01,121.98,7.43637334]
[1766578156859,0.05241073,122.01,121.98,10.92637334]
[1766578157063,2.44,122.04,121.99,3.49]
[1766578158273,0.05717648,122.03,122.0,0.06311991]
[1766578162177,0.05717648,122.03,122.0,3.55311991]
[1766578162381,2.54,122.08,122.0,3.55311991]
[1766578162679,2.54,122.08,122.0,3.49]
[1766578163371,2.54,122.08,122.03,0.05384805]
[1766578167584,2.54,122.08,122.03,0.00384805]
[1766578168576,2.49,122.06,122.03,0.00384805]
[1766578172182,0.05747191,122.07,122.03,0.00384805]
[1766578172790,2.55747191,122.07,122.03,0.00384805]
[1766578173379,0.05747191,122.07,122.03,3.49384805]
[1766578176895,2.55,122.12,122.03,3.49384805]
[1766578177191,2.55,122.12,122.04,3.44]
[1766578177488,2.55,122.12,122.06,3.44]
[1766578177882,2.55,122.12,122.08,0.05582952]
[1766578178088,2.55,122.14,122.08,3.49582952]
[1766578178787,2.55,122.13,122.08,3.49582952]
[1766578179698,2.55,122.14,122.08,3.49582952]
[1766578180694,2.55,122.17,122.09,3.44]
[1766578180896,2.55,122.17,122.12,0.06201688]
[1766578181600,9.9219,122.16,122.12,0.06201688]
[1766578182898,2.55,122.16,122.12,0.06201688]
[1766578184396,2.55,122.17,122.12,3.50201688]
[1766578185790,2.55,122.17,122.12,0.06201688]
[1766578203315,2.55,122.16,122.12,0.06201688]
[1766578215827,2.55,122.16,122.12,7.43621688]
[1766578216020,2.55,122.18,122.12,10.85621688]
[1766578216222,2.55,122.18,122.13,3.42]
[1766578218428,2.55,122.18,122.12,7.43621688]
[1766578219714,2.55,122.18,122.12,0.06201688]
[1766578219921,2.49,122.15,122.12,0.00201688]
[1766578220120,2.49,122.15,122.1,7.3748]
[1766578220922,2.49,122.15,122.11,0.05846016]
[1766578236238,1.26199496,122.14,122.11,0.05846016]
[1766578236444,2.49,122.13,122.08,10.6061]
[1766578237545,0.05639231,122.12,122.09,0.05879757]
[1766578249742,2.49639231,122.12,122.09,0.05879757]
[1766578249943,2.49639231,122.12,122.06,107.2673]
[1766578250143,2.38,122.11,122.06,96.66]
[1766578250338,2.38,122.13,122.07,3.23]
[1766578250844,2.38,122.13,122.08,3.23]
[1766578251445,0.05989076,122.12,122.09,0.06150054]
[1766578252643,0.05989076,122.12,122.09,3.29150054]
[1766578260249,2.43989076,122.12,122.09,0.06150054]
[1766578260953,9.81409076,122.12,122.07,3.23]
[1766578261144,9.81409076,122.12,122.06,96.66]
[1766578261145,2.43989076,122.12,122.05,3.23]
[1766578261354,2.38,122.12,122.05,3.23]
[1766578261846,2.37,122.09,122.05,3.23]
[1766578262052,0.05254515,122.08,122.06,0.05861061]
[1766578262450,2.42254515,122.08,122.03,99.96]
[1766578263646,2.42254515,122.08,122.04,0.05707152]
[1766578270555,0.05254515,122.08,122.04,3.33707152]
[1766578278169,2.42254515,122.08,122.04,3.33707152]
[1766578278366,2.42254515,122.08,122.04,0.05707152]
[1766578282569,9.79924515,122.08,122.04,0.05707152]
[1766578282768,2.37,122.07,122.04,0.05707152]
[1766578284674,2.31,122.06,122.02,3.28]
[1766578284866,2.31,122.06,122.0,3.28]
[1766578285376,9.6885,122.05,122.0,3.28]
[1766578285769,0.05689698,122.04,122.01,0.05372062]
[1766578290283,0.05689698,122.04,122.01,3.33372062]
[1766578291079,9.7464,122.09,122.01,3.33372062]
[1766578291282,9.7464,122.09,122.01,3.28]
[1766578291579,2.37,122.09,122.03,3.31]
[1766578291974,2.37,122.11,122.05,3.36837097]
[1766578292183,2.42,122.15,122.05,3.36837097]
[1766578292376,2.42,122.14,122.05,3.31]
[1766578292577,2.42,122.14,122.07,3.31]
[1766578292979,0.0550694,122.12,122.09,0.06015861]
[1766578302389,2.4750694,122.12,122.09,0.00015861]
[1766578322606,9.8493694,122.12,122.09,0.00015861]
[1766578322806,2.01,122.11,122.05,3.14]
[1766578323209,2.01,122.11,122.05,10.5184]
[1766578323911,0.05426531,122.09,122.07,0.05189501]
[1766578328913,2.01,122.11,122.07,3.19189501]
[1766578329918,0.0590148,122.1,122.07,3.19189501]
[1766578330418,0.0590148,122.1,122.07,10.56889501]
[1766578336519,2.01,122.12,122.07,10.56889501]
[1766578336924,9.3835,122.14,122.09,3.14]
[1766578337127,2.01,122.13,122.09,3.14]
[1766578337427,0.0546976,122.12,122.1,0.05284279]
[1766578351031,0.0046976,122.12,122.1,3.19284279]
[1766578352036,1.26231168,122.17,122.1,3.19284279]
[1766578352230,6.27704431,122.16,122.1,3.14]
[1766578352437,3.68231168,122.17,122.1,3.14]
[1766578352636,3.68231168,122.17,122.11,3.43]
[1766578353024,0.05765591,122.15,122.13,0.06142871]
[1766578358838,2.42,122.17,122.13,3.38142871]
[1766578359142,100.45231168,122.19,122.13,3.38142871]
[1766578360642,107.82231168,122.19,122.13,3.38142871]
[1766578360942,11.10231168,122.19,122.13,3.38142871]
[1766578361343,2.47,122.18,122.13,3.38142871]
[1766578364734,2.47,122.18,122.13,10.75492871]
[1766578364943,2.47,122.18,122.14,3.32]
[1766578365544,3.73231168,122.19,122.14,3.32]
[1766578365744,104.0692,122.21,122.14,3.32]
[1766578365947,100.43231168,122.21,122.16,0.06220453]
[1766578366148,2.47,122.2,122.16,0.06220453]
[1766578369250,97.96231168,122.21,122.16,3.38220453]
[1766578369949,3.73231168,122.21,122.16,3.38220453]
[1766578370551,2.47,122.2,122.16,0.06220453]
[1766578377760,2.47,122.2,122.16,3.38220453]
[1766578378960,2.47,122.2,122.16,0.06220453]
[1766578383069,7.3682,122.22,122.16,3.52220453]
[1766578383070,2.48,122.22,122.16,3.52220453]
[1766578383360,8.62981168,122.24,122.16,3.52220453]
[1766578383361,3.74231168,122.24,122.16,3.52220453]
[1766578383549,3.74231168,122.24,122.19,0.06257754]
[1766578384159,2.48,122.24,122.19,7.43247754]
[1766578384357,3.74231168,122.26,122.19,3.52257754]
[1766578384862,3.74231168,122.26,122.2,3.46]
[1766578385064,3.74231168,122.26,122.22,0.0631703]
[1766578385454,2.48,122.25,122.22,0.0631703]
[1766578391869,2.42,122.23,122.17,3.46]
[1766578392267,3.68231168,122.2,122.14,3.46]
[1766578392666,2.42,122.19,122.13,3.46]
[1766578392866,0.0611977,122.17,122.15,0.05384754]
[1766578393775,2.42,122.19,122.15,0.05384754]
[1766578394861,0.02027048,122.18,122.15,0.05384754]
[1766578402184,0.02027048,122.18,122.15,3.51384754]
[1766578406783,3.68231168,122.2,122.15,10.88614754]
[1766578407987,2.42,122.2,122.15,10.88614754]
[1766578410189,9.33894923,122.22,122.16,3.46]
[1766578410387,2.42,122.21,122.18,0.05518232]
[1766578410987,2.42,122.21,122.16,3.46]
[1766578412090,0.05369201,122.2,122.17,0.05737005]
[1766578433213,0.05369201,122.2,122.17,3.37737005]
[1766578445119,2.41369201,122.2,122.17,0.05737005]
[1766578445718,2.41369201,122.2,122.13,10.6135]
[1766578445922,2.36,122.2,122.13,10.6135]
[1766578446116,2.36,122.2,122.14,3.24]
[1766578446722,2.36,122.2,122.16,0.05220189]
[1766578446723,0.05899365,122.18,122.16,0.05220189]
[1766578446925,2.41899365,122.18,122.14,3.24]
[1766578447930,2.41899365,122.18,122.15,0.05859099]
[1766578448529,9.78969365,122.18,122.15,0.05859099]
[1766578450434,2.41899365,122.18,122.15,0.05859099]
[1766578459943,2.31,122.21,122.15,3.29859099]
[1766578460136,2.31,122.21,122.15,3.24]
[1766578460332,2.36,122.19,122.12,3.24]
[1766578460644,2.36,122.19,122.13,3.24]
[1766578461034,0.05938516,122.17,122.15,0.06275667]
[1766578469546,2.36,122.21,122.15,3.30275667]
[1766578470249,9.7288,122.21,122.16,3.24]
[1766578470453,0.04637545,122.2,122.16,3.24]
[1766578471844,107.67883879,122.23,122.17,3.31]
[1766578472044,10.99883879,122.23,122.17,3.31]
[1766578472850,3.63073879,122.23,122.19,0.05588907]
[1766578475947,9.92339585,122.24,122.19,3.59588907]
[1766578476138,3.67073879,122.24,122.19,3.59588907]
[1766578478348,2.41,122.23,122.19,3.59588907]
[1766578478650,2.41,122.23,122.19,0.05588907]
[1766578490871,3.67073879,122.25,122.19,3.59588907]
[1766578491177,2.41,122.25,122.19,3.59588907]
[1766578500686,2.41,122.24,122.19,0.05588907]
[1766578502669,9.777,122.24,122.19,0.05588907]
[1766578504069,2.41,122.23,122.19,0.05588907]
[1766578512380,2.35,122.22,122.16,3.4]
[1766578513381,2.35,122.22,122.18,3.45478468]
[1766578513581,9.7773,122.24,122.18,3.45478468]
[1766578513970,2.41,122.23,122.18,3.45478468]
[1766578524095,2.41,122.23,122.18,10.82528468]
[1766578524285,2.41,122.25,122.19,3.4]
[1766578524485,6.26559669,122.24,122.21,0.05306568]
[1766578524684,2.41,122.25,122.21,0.05306568]
[1766578524886,8.675594,122.24,122.21,0.05306568]
[1766578525085,2.41,122.24,122.21,0.05306568]
[1766578526494,2.41,122.24,122.21,0.00306568]
[1766578526702,2.36,122.23,122.17,3.4]
[1766578527589,0.05306568,122.21,122.19,0.05838523]
[1766578542311,0.00306568,122.21,122.19,10.76808523]
[1766578544815,0.00306568,122.21,122.2,3.34]
[1766578545108,2.06,122.26,122.21,3.34]
[1766578545904,2.06,122.26,122.22,0.06220904]
[1766578546196,2.06,122.28,122.23,3.34]
[1766578546402,7.63152574,122.3,122.2,211.2515]
[1766578546403,2.06,122.3,122.24,3.39381071]
[1766578550407,2.06,122.3,122.25,3.34]
[1766578551811,2.06,122.3,122.24,0.05381071]
[1766578552111,2.01,122.29,122.21,3.34]
[1766578553006,0.05381071,122.26,122.24,0.05716498]
[1766578561629,2.41381071,122.26,122.21,3.56]
[1766578562423,0.05381071,122.26,122.22,3.61962724]
[1766578562631,0.05882191,122.25,122.22,3.61962724]
[1766578565638,9.6646,122.28,122.22,10.98772724]
[1766578565929,9.6646,122.28,122.23,3.56]
[1766578566332,2.3,122.28,122.23,3.56]
[1766578566526,0.05215378,122.27,122.23,3.56]
[1766578567329,2.41215378,122.27,122.22,3.61962724]
[1766578573336,0.00215378,122.27,122.22,3.61962724]
[1766578573940,0.00215378,122.27,122.24,10.9269]
[1766578582945,0.00215378,122.27,122.24,3.56]
[1766578583539,2.41215378,122.27,122.22,3.61962724]
[1766578584649,9.77745378,122.27,122.22,3.61962724]
[1766578586947,7.36745378,122.27,122.22,3.61962724]
[1766578587550,0.00215378,122.27,122.22,3.61962724]
[1766578589038,0.00215378,122.27,122.23,3.56]
[1766578591350,0.00215378,122.27,122.24,3.48]
[1766578600648,0.00215378,122.27,122.25,3.38]
[1766578600854,0.00215378,122.27,122.25,3.44194455]
[1766578607069,0.00215378,122.27,122.26,3.38]
[1766578616666,0.00215378,122.27,122.26,96.56]
[1766578617174,0.00215378,122.27,122.26,99.94]
[1766578617375,0.00215378,122.27,122.26,96.56]
[1766578618375,96.6,122.35,122.27,3.38]
[1766578618376,3.31892707,122.35,122.27,3.38]
[1766578619264,3.31892707,122.35,122.3,0.05236976]
[1766578619879,6.20016912,122.37,122.3,3.43236976]
[1766578620068,8.25934365,122.39,122.33,3.38]
[1766578620275,2.06,122.39,122.35,0.06245192]
[1766578620468,3.31892707,122.39,122.35,0.06245192]
[1766578621179,2.06,122.39,122.35,0.06245192]
[1766578623888,3.66892707,122.41,122.35,3.42245192]
[1766578625295,1.25892707,122.4,122.35,3.42245192]
[1766578625678,1.25892707,122.4,122.35,10.78265192]
[1766578625889,1.25892707,122.42,122.36,3.36]
[1766578626180,3.66892707,122.42,122.38,0.0518144]
[1766578627087,2.41,122.39,122.32,3.36]
[1766578627285,3.66892707,122.38,122.32,3.36]
[1766578627487,2.41,122.37,122.32,3.36]
[1766578627793,2.41,122.37,122.3,96.52]
[1766578627794,3.66892707,122.36,122.3,3.36]
[1766578628388,2.41,122.35,122.3,3.36]
[1766578628694,0.05012134,122.34,122.3,3.36]
[1766578629797,0.05012134,122.34,122.31,0.06290374]
[1766578641205,0.00012134,122.34,122.31,3.42290374]
[1766578642607,0.00012134,122.34,122.31,0.06290374]
[1766578647011,0.00012134,122.34,122.31,3.42290374]
[1766578650109,0.00012134,122.34,122.33,3.36]
[1766578650414,3.71892707,122.42,122.34,3.36]